bitfinex-derivatives/quotes_ETHF0:USTF0_20251211
["timestamp","ask_amount","ask_price","bid_price","bid_amount"]
[1765443373984,8.48641484,3195.6,3195.5,3.5399]
[1765443374190,8.48641484,3195.6,3195.5,2.2007]
[1765443376387,2.34341484,3195.6,3195.5,2.2007]
[1765443376592,9.96741484,3195.6,3195.5,0.8141]
[1765443378593,1.7968,3195.1,3195.0,2.2797]
[1765443378794,2.91732213,3195.1,3195.0,3.6189]
[1765443379986,2.91732213,3195.1,3195.0,0.8931]
[1765443380492,2.91732213,3195.1,3195.0,3.6189]
[1765443381497,2.91732213,3195.1,3195.0,2.2797]
[1765443381789,2.7417,3194.8,3194.7,2.73372358]
[1765443381988,3.86222213,3194.8,3194.7,0.00792358]
[1765443382189,3.86222213,3194.8,3194.7,1.39452358]
[1765443382586,3.86222213,3194.8,3194.7,2.73372358]
[1765443383188,2.50072213,3194.8,3194.7,2.73372358]
[1765443383388,3.86222213,3194.8,3194.7,2.73372358]
[1765443385395,3.86222213,3194.8,3194.7,0.00792358]
[1765443386097,3.86222213,3194.8,3194.7,1.39452358]
[1765443386694,2.50072213,3194.8,3194.7,2.73372358]
[1765443387101,3.81192213,3194.8,3194.7,2.73372358]
[1765443388999,3.81192213,3194.8,3194.7,1.39452358]
[1765443390301,3.81192213,3194.8,3194.7,2.69792358]
[1765443390497,3.81192213,3194.8,3194.7,1.39452358]
[1765443391300,3.81192213,3194.8,3194.7,0.00792358]
[1765443392001,3.81192213,3194.8,3194.7,1.31522358]
[1765443392203,3.81192213,3194.8,3194.7,0.00792358]
[1765443393605,15.93652213,3194.8,3194.7,2.61862358]
[1765443394103,6.127,3195.1,3195.0,3.3492]
[1765443394303,18.508,3195.1,3195.0,0.7385]
[1765443394597,2.4082,3194.8,3194.7,2.61862358]
[1765443395204,3.52872213,3194.8,3194.7,2.61862358]
[1765443396202,2.32462213,3194.8,3194.7,2.61862358]
[1765443397002,9.50462213,3194.8,3194.7,2.61862358]
[1765443397907,10.66892213,3194.8,3194.7,1.31522358]
[1765443398103,10.66892213,3194.8,3194.7,0.00792358]
[1765443398308,10.66892213,3194.8,3194.7,2.61862358]
[1765443401903,10.66892213,3194.8,3194.7,0.00792358]
[1765443402111,1.1119,3194.1,3194.0,3.5021]
[1765443402312,5.44022213,3194.1,3194.0,3.5021]
[1765443403107,5.44244726,3194.1,3194.0,3.50520038]
[1765443403512,14.41544726,3194.1,3194.0,3.50520038]
[1765443403711,13.30354726,3194.1,3194.0,3.50520038]
[1765443404310,4.33054726,3194.1,3194.0,3.50520038]
[1765443405913,3.21002513,3194.1,3194.0,3.50520038]
[1765443406514,4.53582513,3194.1,3194.0,3.50520038]
[1765443406814,3.21002513,3194.1,3194.0,3.50520038]
[1765443411320,5.78942513,3194.1,3194.0,3.50520038]
[1765443411710,4.53582513,3194.1,3194.0,3.50520038]
[1765443412314,3.21002513,3194.1,3194.0,3.50520038]
[1765443412521,4.53582513,3194.1,3194.0,3.50520038]
[1765443412722,3.21002513,3194.1,3194.0,3.50520038]
[1765443416424,3.2078,3194.7,3194.6,2.6107]
[1765443417031,4.5336,3195.1,3194.5,3.9358]
[1765443417227,4.5336,3195.1,3195.0,2.6107]
[1765443417428,4.5374601,3195.1,3195.0,2.6107]
[1765443417729,4.5374601,3195.1,3195.0,3.3492]
[1765443418831,3.2116601,3195.1,3195.0,3.3492]
[1765443419629,6.05769271,3195.6,3195.5,3.0011]
[1765443420327,5.74661484,3195.6,3195.5,3.848]
[1765443420730,7.18206138,3195.6,3195.5,3.0011]
[1765443421328,7.18206138,3195.6,3195.5,1.5136]
[1765443421532,2.8452,3194.6,3194.5,10.11932853]
[1765443421733,3.96572213,3194.6,3194.5,6.2089]
[1765443422428,3.96572213,3194.6,3194.5,1.5136]
[1765443422926,2.8452,3194.6,3194.5,3.0011]
[1765443423127,2.53412213,3194.9,3194.8,3.0011]
[1765443423333,3.96572213,3194.9,3194.8,3.0011]
[1765443424526,2.8452,3194.6,3194.5,3.848]
[1765443424736,2.8452,3194.6,3194.5,3.0011]
[1765443424929,1.4136,3194.6,3194.5,3.0011]
[1765443425129,1.4136,3194.6,3194.5,3.848]
[1765443425740,3.96572213,3194.9,3194.8,3.0011]
[1765443425935,3.2078,3195.2,3195.1,3.0011]
[1765443427541,4.0148,3196.0,3195.5,3.8413]
[1765443427842,3.2078,3196.0,3195.5,3.8413]
[1765443434648,1.14856062,3195.9,3195.5,3.8413]
[1765443435448,4.35636062,3196.0,3195.5,3.8413]
[1765443435649,1.14856062,3196.0,3195.5,3.8413]
[1765443436355,3.2078,3196.4,3195.5,3.8413]
[1765443436651,1.14856062,3196.1,3195.5,3.8413]
[1765443436846,4.35636062,3196.4,3195.5,3.8413]
[1765443437053,5.73936062,3196.4,3196.3,2.8444]
[1765443437450,2.53156062,3196.4,3196.3,2.8444]
[1765443437652,1.14856062,3196.4,3196.3,2.8444]
[1765443437848,1.15204811,3196.4,3196.3,2.84689315]
[1765443439256,3.99794811,3196.4,3196.3,0.00249315]
[1765443439549,7.20574811,3196.4,3196.3,0.00249315]
[1765443441158,7.20574811,3196.4,3196.3,1.39759315]
[1765443441757,7.20574811,3196.4,3196.3,0.00249315]
[1765443442157,7.20574811,3196.4,3196.3,1.39759315]
[1765443442652,7.20574811,3196.4,3196.3,2.84689315]
[1765443443157,7.20574811,3196.4,3196.3,1.39759315]
[1765443443356,5.74284811,3196.4,3196.3,2.84689315]
[1765443443752,7.20574811,3196.4,3196.3,2.84689315]
[1765443445053,7.20574811,3196.4,3196.3,0.00249315]
[1765443446254,7.20574811,3196.4,3196.3,2.84689315]
[1765443447054,5.74284811,3196.4,3196.3,2.84689315]
[1765443447258,4.35984811,3196.4,3196.3,2.84689315]
[1765443447456,0.00348749,3196.4,3196.3,2.84689315]
[1765443453168,0.00348749,3196.4,3196.3,6.05469315]
[1765443454066,1.3281,3197.2,3197.1,2.7763]
[1765443454366,3.86876062,3197.4,3197.3,2.7763]
[1765443454665,3.86876062,3197.4,3197.3,1.389]
[1765443454869,2.7202,3197.1,3197.0,2.7763]
[1765443455065,3.87195186,3197.1,3197.0,2.7763]
[1765443455369,2.47985186,3197.1,3197.0,3.6151]
[1765443455963,3.87195186,3197.1,3197.0,1.389]
[1765443456166,3.87195186,3197.1,3197.0,2.7763]
[1765443456767,2.7202,3196.9,3196.8,5.9841]
[1765443456966,3.86876062,3196.9,3196.8,5.9841]
[1765443457773,1.3281,3196.9,3196.8,5.9841]
[1765443457975,2.47666062,3196.9,3196.8,5.9841]
[1765443458172,3.86876062,3196.9,3196.8,5.9841]
[1765443458368,3.86876062,3196.9,3196.8,3.2078]
[1765443458764,3.86876062,3196.9,3196.8,4.5968]
[1765443459364,3.86876062,3196.9,3196.8,3.2078]
[1765443459568,2.7202,3196.4,3196.3,2.77879315]
[1765443459772,3.86876062,3196.4,3196.3,0.00249315]
[1765443462371,5.928,3196.9,3196.8,1.389]
[1765443462570,2.7202,3196.6,3196.5,2.7763]
[1765443462765,1.3281,3196.6,3196.5,3.4626]
[1765443463667,7.07656062,3196.9,3196.8,2.7763]
[1765443464071,7.07656062,3196.9,3196.8,1.389]
[1765443464371,2.7202,3196.6,3196.4,3.2078]
[1765443464571,4.35636062,3196.9,3196.3,0.00249315]
[1765443464572,2.7202,3196.4,3196.3,0.00249315]
[1765443465477,3.86876062,3196.4,3196.3,0.00249315]
[1765443465978,3.86876062,3196.4,3196.3,1.39149315]
[1765443467178,3.86876062,3196.4,3196.3,0.00249315]
[1765443468376,2.7202,3196.1,3196.0,3.21249271]
[1765443468579,5.01732124,3196.1,3196.0,3.21249271]
[1765443468969,3.86876062,3196.1,3196.0,3.21249271]
[1765443469570,3.86876062,3196.1,3196.0,3.21527758]
[1765443471873,5.01732124,3196.1,3196.0,0.00747758]
[1765443473683,2.7202,3195.7,3195.6,3.2078]
[1765443473883,3.86876062,3195.7,3195.6,4.5968]
[1765443474073,3.86876062,3195.7,3195.6,3.2078]
[1765443474678,3.86876062,3195.7,3195.6,4.5968]
[1765443474877,1.14856062,3195.7,3195.6,5.9879188]
[1765443475078,2.47666062,3195.7,3195.6,5.9879188]
[1765443475380,3.86876062,3195.7,3195.6,5.9879188]
[1765443477582,3.86876062,3195.7,3195.6,4.6006188]
[1765443479186,3.86876062,3195.7,3195.6,5.9879188]
[1765443480776,3.86876062,3195.7,3195.6,5.8367188]
[1765443482084,2.47666062,3195.7,3195.6,5.8367188]
[1765443482485,1.229,3196.1,3196.0,3.2466]
[1765443482684,2.37756062,3196.1,3196.0,3.2466]
[1765443482884,3.62966062,3196.1,3196.0,3.2466]
[1765443483084,3.62966062,3196.1,3196.0,2.5189]
[1765443483788,2.37756062,3196.1,3196.0,3.2466]
[1765443484781,3.62966062,3196.1,3196.0,3.2466]
[1765443485181,2.37756062,3196.1,3196.0,3.2466]
[1765443485486,2.4811,3196.1,3196.0,2.5189]
[1765443485689,4.4368,3196.4,3196.3,2.5189]
[1765443485884,6.83746062,3196.4,3196.3,2.5189]
[1765443486386,3.62966062,3196.4,3196.3,2.5189]
[1765443487784,3.62966062,3196.4,3196.3,1.2828]
[1765443487979,2.4811,3196.2,3196.1,3.2078]
[1765443488181,4.77822124,3196.2,3196.1,3.2078]
[1765443489085,1.6334,3195.7,3195.6,0.0038188]
[1765443489290,0.8167,3195.1,3195.0,3.2466]
[1765443489488,5.97736062,3195.1,3195.0,3.2466]
[1765443489682,7.12592124,3195.1,3195.0,0.7277]
[1765443489888,0.8043,3194.6,3194.5,3.3577]
[1765443490191,0.0025484,3194.6,3194.5,0.84286074]
[1765443490394,0.0025484,3194.6,3194.5,3.36176074]
[1765443494389,0.0025484,3194.6,3194.5,9.36176074]
[1765443494693,4.111e-05,3194.9,3194.8,2.603]
[1765443494884,4.111e-05,3194.9,3194.8,5.8108]
[1765443495496,0.00394056,3194.9,3194.8,5.8108]
[1765443502190,4.056e-05,3194.9,3194.8,5.96727]
[1765443502997,4.056e-05,3194.9,3194.8,9.87693411]
[1765443505495,3.327e-05,3195.2,3195.1,2.75946]
[1765443505694,3.692,3196.3,3195.1,6.66912411]
[1765443505896,1.2765,3195.7,3195.6,5.8108]
[1765443506597,0.00386806,3195.7,3195.6,5.8108]
[1765443508802,2.75646806,3195.7,3195.6,3.2078]
[1765443508995,2.75646806,3195.7,3195.3,0.15645]
[1765443508996,2.8969,3195.4,3195.3,0.15645]
[1765443509597,2.8969,3195.4,3195.3,1.62385]
[1765443510804,2.8969,3195.4,3195.3,3.08845]
[1765443512809,1.4208,3195.4,3195.3,3.08845]
[1765443513600,1.12028076,3195.5,3195.4,2.932]
[1765443514006,4.01718076,3195.5,3195.4,2.932]
[1765443514398,1.4208,3195.5,3195.4,2.932]
[1765443515300,0.00386806,3195.7,3195.6,2.932]
[1765443515506,0.00386806,3195.7,3195.6,6.1398]
[1765443515913,1.42466806,3195.7,3195.6,6.1398]
[1765443516209,0.00386806,3195.7,3195.6,6.1398]
[1765443519817,1.42466806,3195.7,3195.6,2.932]
[1765443520015,2.90076806,3195.7,3195.6,2.932]
[1765443520214,2.8969,3195.4,3195.3,3.08845]
[1765443520413,2.54108076,3195.4,3195.3,3.08845]
[1765443520711,1.12028076,3195.4,3195.3,3.08845]
[1765443522113,2.54108076,3195.4,3195.3,2.932]
[1765443523014,0.00386806,3195.7,3195.6,2.932]
[1765443523215,1.42466806,3195.7,3195.6,6.1398]
[1765443523605,0.00386806,3195.7,3195.6,6.1398]
[1765443523809,1.42466806,3195.7,3195.6,6.1398]
[1765443524008,1.42466806,3195.7,3195.6,2.932]
[1765443525119,2.90076806,3195.7,3195.6,2.932]
[1765443525818,1.42466806,3195.7,3195.6,2.932]
[1765443526209,0.00386806,3195.7,3195.6,6.1398]
[1765443528521,0.00386806,3195.7,3195.6,6.29623]
[1765443530420,2.54494882,3195.7,3195.6,6.29623]
[1765443530921,1.12414882,3195.7,3195.6,6.29623]
[1765443534925,1.12414882,3195.7,3195.6,10.20589411]
[1765443535327,0.00386806,3195.7,3195.6,6.29623]
[1765443537631,0.00386806,3195.7,3195.6,10.21759652]
[1765443538130,0.00386806,3195.7,3195.6,6.29623]
[1765443538830,0.00386806,3195.7,3195.6,10.21723505]
[1765443542026,0.00386806,3195.7,3195.6,6.29623]
[1765443543642,0.00386806,3195.7,3195.6,10.21872319]
[1765443544038,0.00386806,3195.7,3195.6,6.29623]
[1765443544232,0.00386806,3195.7,3195.6,10.21895385]
[1765443545533,0.00386806,3195.7,3195.6,6.29623]
[1765443545935,1.12414882,3195.7,3195.6,6.29623]
[1765443546139,2.40714882,3195.7,3195.6,10.21920331]
[1765443546441,1.12414882,3195.7,3195.6,10.21920331]
[1765443546645,0.00386806,3195.7,3195.6,10.21920331]
[1765443546840,0.00386806,3195.7,3195.6,6.29623]
[1765443548847,0.00386806,3195.7,3195.6,10.21958219]
[1765443549247,0.00386806,3195.7,3195.6,6.29623]
[1765443556651,1.15264533,3195.7,3195.6,6.29623]
[1765443565658,0.00469271,3196.0,3195.9,2.62012]
[1765443565958,1.15346998,3196.0,3195.9,2.62012]
[1765443566156,1.15346998,3196.0,3195.9,6.54792235]
[1765443566660,1.15660797,3196.0,3195.9,6.54792235]
[1765443566862,3.55370797,3196.0,3195.9,6.54792235]
[1765443567761,2.34870797,3196.0,3195.9,6.54792235]
[1765443569560,1.15660797,3196.0,3195.9,6.54792235]
[1765443569759,3.2078,3197.4,3196.9,2.3376]
[1765443570060,2.3607,3197.8,3197.7,2.3376]
[1765443570254,3.50947727,3197.8,3197.7,5.5454]
[1765443570867,3.51180578,3197.8,3197.7,2.34039371]
[1765443571056,3.51180578,3197.8,3197.7,0.00279371]
[1765443571260,2.3607,3197.6,3197.5,0.15634]
[1765443571454,3.50947727,3197.6,3197.5,1.29804]
[1765443571659,3.50947727,3197.6,3197.5,2.49394]
[1765443572060,3.50947727,3197.6,3197.5,1.29804]
[1765443572258,3.50947727,3197.6,3197.5,1.30198036]
[1765443572655,3.50947727,3197.6,3197.5,2.49788036]
[1765443572860,3.50947727,3197.6,3197.5,1.30198036]
[1765443573466,3.50947727,3197.6,3197.5,1.14564036]
[1765443573667,3.50947727,3197.6,3197.5,0.00394036]
[1765443573868,9.50947727,3197.6,3197.5,0.00394036]
[1765443575165,2.3607,3197.6,3197.5,1.14564036]
[1765443575366,3.50947727,3197.6,3197.5,1.14564036]
[1765443578174,3.50947727,3197.6,3197.5,0.00394036]
[1765443579974,3.50947727,3197.6,3197.5,1.14564036]
[1765443580577,3.50947727,3197.6,3197.5,0.00394036]
[1765443580875,3.50947727,3197.6,3197.5,2.34154036]
[1765443581073,3.21012851,3197.8,3197.7,2.3376]
[1765443581074,4.37672851,3197.8,3197.7,2.3376]
[1765443581370,3.21012851,3197.8,3197.7,2.3376]
[1765443581972,4.37672851,3197.8,3197.7,2.3376]
[1765443582172,2.36302851,3197.8,3197.7,2.3376]
[1765443582473,2.36302851,3197.8,3197.7,5.5454]
[1765443583171,1.16892851,3197.8,3197.7,5.5454]
[1765443583372,2.36302851,3197.8,3197.7,5.5454]
[1765443583872,0.00232851,3197.8,3197.7,5.5454]
[1765443584273,1.16892851,3197.8,3197.7,5.5454]
[1765443585177,0.00232851,3197.8,3197.7,5.5454]
[1765443588076,0.00232851,3197.8,3197.0,1.81487727]
[1765443588077,0.15636,3197.0,3196.0,0.6661]
[1765443588271,3.2078,3196.4,3196.3,1.1417]
[1765443588472,3.2078,3196.4,3196.3,2.3376]
[1765443588676,3.2078,3196.4,3196.3,5.49510235]
[1765443589080,3.2078,3196.4,3196.3,5.49899701]
[1765443590183,0.00196318,3196.4,3196.3,5.49899701]
[1765443600296,3.2078,3196.8,3196.5,1.2743]
[1765443600595,1.14828881,3196.6,3196.5,1.2743]
[1765443601792,1.14828881,3196.6,3196.3,0.00389466]
[1765443601990,4.35608881,3196.4,3196.3,0.00389466]
[1765443602587,4.35608881,3196.4,3196.3,8.33668582]
[1765443602588,3.2078,3196.4,3196.3,8.33668582]
[1765443602787,3.2078,3196.4,3196.3,7.18839701]
[1765443603996,3.2078,3196.4,3196.3,4.03089466]
[1765443604699,4.35608881,3196.4,3196.3,4.03089466]
[1765443604999,4.35608881,3196.4,3196.3,0.00389466]
[1765443605296,3.2078,3196.4,3196.3,7.18839701]
[1765443608196,3.2078,3196.4,3196.3,8.33668582]
[1765443608501,3.2078,3196.4,3196.3,7.18839701]
[1765443610698,3.2078,3196.4,3196.3,0.00389466]
[1765443610903,4.35608881,3196.4,3196.3,2.02039466]
[1765443611105,4.35608881,3196.4,3196.3,4.03089466]
[1765443611502,4.35608881,3196.4,3196.3,2.02039466]
[1765443611900,4.35608881,3196.4,3196.3,0.00389466]
[1765443613106,3.2078,3196.4,3196.3,0.00389466]
[1765443613300,4.35608881,3196.4,3196.3,0.00389466]
[1765443618807,3.2078,3196.4,3196.3,2.06459466]
[1765443619409,3.2078,3196.4,3196.3,0.00389466]
[1765443627815,4.327354,3196.4,3196.0,5.77179602]
[1765443628021,1.119554,3196.1,3196.0,3.71109602]
[1765443628811,1.119554,3196.1,3196.0,3.71421358]
[1765443629012,4.33204671,3196.4,3196.3,1.967]
[1765443629416,3.21249271,3196.4,3196.3,3.7695]
[1765443629621,3.21249271,3196.4,3196.3,6.92700235]
[1765443629821,3.21249271,3196.4,3196.3,3.15750235]
[1765443630321,3.21249271,3196.4,3196.3,5.12450235]
[1765443630621,3.21249271,3196.4,3196.3,3.15750235]
[1765443635323,3.21249271,3196.4,3196.0,0.55671123]
[1765443635623,1.119554,3196.1,3196.0,0.55671123]
[1765443637517,1.119554,3196.1,3196.0,5.68121358]
[1765443639324,1.119554,3196.1,3196.0,7.48371358]
[1765443640922,4.33204671,3196.4,3196.3,3.7695]
[1765443645840,4.33204671,3196.4,3196.3,1.967]
[1765443646040,4.33204671,3196.4,3196.3,5.12450235]
[1765443646241,4.33204671,3196.4,3196.3,3.15750235]
[1765443647439,4.33204671,3196.4,3196.0,2.52371123]
[1765443647640,3.21249271,3196.4,3196.1,3.15750235]
[1765443648739,3.21249271,3196.4,3196.0,2.52371123]
[1765443648947,1.119554,3196.2,3196.1,3.15750235]
[1765443649333,1.119554,3196.2,3196.1,6.92700235]
[1765443650444,3.21249271,3196.4,3196.3,3.7695]
[1765443650946,3.21249271,3196.4,3196.3,6.92700235]
[1765443652053,3.21249271,3196.4,3196.3,3.15750235]
[1765443654054,3.21249271,3196.4,3196.3,6.92700235]
[1765443656352,1.68857928,3197.5,3196.0,0.55671123]
[1765443656353,3.692,3197.3,3197.0,4.8813]
[1765443656552,4.327354,3197.1,3197.0,4.8813]
[1765443659260,4.327354,3197.1,3196.5,2.9648]
[1765443659460,4.327354,3196.6,3196.5,1.1118]
[1765443659660,4.327354,3196.6,3196.5,2.9648]
[1765443659854,4.327354,3196.6,3196.5,4.7749]
[1765443660053,1.119554,3196.6,3196.5,4.7749]
[1765443660757,4.327354,3196.6,3196.5,4.7749]
[1765443661065,1.119554,3196.6,3196.5,4.7749]
[1765443662659,4.327354,3196.6,3196.5,1.1118]
[1765443663356,3.2078,3196.6,3196.5,1.1118]
[1765443665162,3.2078,3196.6,3196.5,2.9648]
[1765443665465,3.2078,3196.6,3196.5,4.7749]
[1765443666467,3.2078,3196.6,3196.5,2.9648]
[1765443667665,3.2078,3196.6,3196.5,4.7749]
[1765443668365,3.2078,3196.6,3196.5,1.1118]
[1765443671564,3.2078,3196.6,3196.5,4.7749]
[1765443671966,3.2078,3197.0,3196.9,3.6631]
[1765443675071,0.00469271,3197.4,3197.3,3.6631]
[1765443677669,0.00232851,3197.8,3197.7,3.6631]
[1765443677670,1.12188251,3197.8,3197.7,3.6631]
[1765443678675,1.79049591,3197.8,3197.7,3.6631]
[1765443678875,1.14969591,3197.8,3197.7,3.6631]
[1765443680772,3.21249271,3198.1,3197.7,3.6631]
[1765443681073,3.21249271,3198.1,3198.0,4.9959]
[1765443681074,1.15206011,3198.1,3198.0,4.9959]
[1765443681772,4.77565118,3198.1,3198.0,3.0813]
[1765443682374,4.77565118,3198.1,3198.0,4.9959]
[1765443683569,3.62828378,3198.1,3198.0,4.9959]
[1765443683770,4.77565118,3198.1,3198.0,4.9959]
[1765443683969,4.77565118,3198.1,3198.0,3.0813]
[1765443684281,3.7008,3197.8,3197.7,0.00469271]
[1765443684578,4.8481674,3197.8,3197.7,0.00469271]
[1765443684879,4.8481674,3197.8,3197.7,1.95519271]
[1765443685081,4.8481674,3197.8,3197.7,3.86979271]
[1765443686572,4.8481674,3197.8,3197.7,0.00469271]
[1765443689782,3.4554,3197.3,3197.2,5.1898]
[1765443689983,4.6027674,3197.3,3197.2,3.2078]
[1765443691688,4.6027674,3197.3,3197.2,5.1898]
[1765443693286,4.6027674,3197.3,3197.2,3.2078]
[1765443693684,4.6027674,3197.3,3197.2,5.1898]
[1765443694580,4.6027674,3197.3,3197.2,3.2078]
[1765443694788,3.255,3197.1,3196.9,0.00469271]
[1765443694985,4.4023674,3197.1,3197.0,3.0718]
[1765443695285,4.4023674,3197.1,3197.0,5.0527]
[1765443695286,1.1473674,3197.1,3197.0,5.0527]
[1765443695488,2.7748674,3197.1,3197.0,5.0527]
[1765443695684,4.3823674,3197.1,3197.0,5.0527]
[1765443696188,2.7748674,3197.1,3197.0,5.0527]
[1765443696392,6.3828,3197.6,3197.5,3.1573]
[1765443696585,18.9001674,3197.6,3197.5,3.1573]
[1765443696889,18.9001674,3197.6,3197.5,1.1753]
[1765443697388,18.9001674,3197.6,3197.5,3.1573]
[1765443697590,19.8941674,3197.6,3197.5,5.1382]
[1765443697990,19.8941674,3197.6,3197.5,1.1753]
[1765443698291,19.8941674,3197.6,3197.5,3.1573]
[1765443698791,19.8941674,3197.6,3197.5,1.1753]
[1765443699184,19.8941674,3197.6,3197.5,5.1382]
[1765443699689,5.9426674,3197.6,3197.5,5.1382]
[1765443700287,3.21272,3197.9,3197.8,1.982]
[1765443700587,3.21518378,3198.1,3197.5,1.1753]
[1765443700588,3.21518378,3198.1,3198.0,5.1382]
[1765443701494,1.15475118,3198.1,3198.0,5.1382]
[1765443703291,3.2078,3198.5,3198.0,11.1382]
[1765443703592,4.3551674,3198.5,3198.4,3.9629]
[1765443704596,4.35817014,3198.5,3198.4,3.96592384]
[1765443705187,3.21080274,3198.5,3198.4,3.96592384]
[1765443705397,4.35817014,3198.5,3198.4,3.96592384]
[1765443705698,0.15622,3199.9,3198.4,3.96592384]
[1765443705699,6.9057,3199.2,3199.1,3.9629]
[1765443706500,6.90887502,3199.2,3199.1,3.9629]
[1765443706998,8.05624242,3199.2,3199.1,1.982]
[1765443707197,1.68857928,3200.5,3200.4,3.9629]
[1765443707408,5.15601832,3201.5,3201.3,1.2544]
[1765443707409,2.25143904,3201.4,3201.3,1.2544]
[1765443707607,1.8466,3201.4,3201.3,4.4622]
[1765443708299,1.216,3201.5,3201.4,1.2544]
[1765443708505,4.9139,3202.0,3201.9,0.6272]
[1765443708704,4.91644726,3202.0,3201.9,3.835]
[1765443709304,4.91644726,3202.0,3201.9,3.2078]
[1765443709513,1.21854726,3202.0,3201.9,6.3256]
[1765443709701,3.06514726,3202.0,3201.9,6.3256]
[1765443709900,4.91644726,3202.0,3201.9,4.779]
[1765443710708,6.56452063,3202.0,3201.9,3.2078]
[1765443711410,4.91644726,3202.0,3201.9,3.2078]
[1765443712515,4.91644726,3202.0,3201.9,3.07869789]
[1765443713515,3.6979,3201.4,3201.3,1.47323547]
[1765443713715,3.6979,3201.4,3201.3,3.21133547]
[1765443714409,3.0626,3201.5,3201.4,3.8746]
[1765443714907,4.9139,3201.5,3201.4,3.8746]
[1765443715816,4.9139,3201.5,3201.4,1.9373]
[1765443716004,3.6979,3201.4,3201.3,3.21133547]
[1765443716416,3.6979,3201.4,3201.3,7.03433547]
[1765443716618,1.8466,3201.4,3201.3,7.03433547]
[1765443717014,3.0626,3201.5,3201.4,3.7716]
[1765443717205,4.9139,3201.5,3201.4,3.7716]
[1765443717410,1.216,3201.5,3201.4,3.7716]
[1765443718112,4.91644726,3202.0,3201.9,1.8601]
[1765443718314,4.3624,3201.8,3201.7,5.0679]
[1765443718720,4.3624,3201.8,3201.7,3.2078]
[1765443719117,4.036,3201.5,3201.4,3.6634]
[1765443719821,6.5518,3201.5,3201.4,1.8317]
[1765443720216,4.036,3201.5,3201.4,3.638]
[1765443720523,1.5198,3201.5,3201.4,3.638]
[1765443720821,1.21854726,3202.0,3201.9,1.7809]
[1765443721023,3.73474726,3202.0,3201.9,3.5618]
[1765443721818,1.21854726,3202.0,3201.9,3.5618]
[1765443722920,6.25054726,3202.0,3201.9,1.7809]
[1765443723125,5.032,3201.8,3201.7,6.6686]
[1765443723423,6.25054726,3202.0,3201.9,3.4608]
[1765443723626,1.21854726,3202.0,3201.9,3.4608]
[1765443724018,3.73474726,3202.0,3201.9,3.4608]
[1765443726228,6.25054726,3202.0,3201.9,3.4608]
[1765443727027,3.73474726,3202.0,3201.9,3.4608]
[1765443727227,0.00254726,3202.0,3201.9,3.4608]
[1765443728230,3.36385,3203.4,3201.9,3.4608]
[1765443728231,7.89607337,3203.0,3202.0,0.4368]
[1765443728522,5.032,3202.1,3202.0,4.7861]
[1765443728928,2.5162,3202.1,3202.0,6.3644]
[1765443729328,5.03454413,3202.1,3202.0,3.2078]
[1765443730924,5.03454413,3202.1,3201.3,0.00353547]
[1765443730925,1.5198,3202.0,3201.6,3.2078]
[1765443731127,5.032,3201.7,3201.6,4.7374]
[1765443731529,5.032,3201.7,3201.6,3.2078]
[1765443731731,5.032,3201.7,3201.6,4.7129]
[1765443731929,5.032,3201.7,3201.6,6.218]
[1765443732134,2.5162,3201.7,3201.6,6.218]
[1765443732535,4.9427,3201.7,3201.6,6.218]
[1765443733430,2.5162,3201.7,3201.6,6.218]
[1765443733823,2.256,3201.7,3201.6,6.1206]
[1765443734027,6.2023,3202.0,3201.9,2.9128]
[1765443734429,6.2023,3202.0,3201.9,1.4564]
[1765443735131,7.06431882,3202.0,3201.9,1.4564]
[1765443735832,0.00254413,3202.1,3202.0,2.816]
[1765443736036,0.00254413,3202.1,3202.0,6.0238]
[1765443736237,0.86465052,3202.1,3202.0,6.0238]
[1765443736634,0.00254413,3202.1,3202.0,6.0238]
[1765443737336,5.54710234,3202.1,3202.0,6.0238]
[1765443737933,5.54710234,3202.1,3202.0,3.2078]
[1765443738131,5.54710234,3202.1,3202.0,4.5678]
[1765443738739,5.54710234,3202.1,3202.0,3.2078]
[1765443739836,5.54710234,3202.1,3202.0,4.5439]
[1765443740044,5.54710234,3202.1,3202.0,5.8561]
[1765443740436,5.54710234,3202.1,3202.0,4.5439]
[1765443740637,5.54710234,3202.1,3202.0,5.8324]
[1765443741741,5.54710234,3202.1,3202.0,4.5439]
[1765443742239,1.216,3203.0,3202.0,4.5439]
[1765443742240,2.24159578,3203.7,3202.5,0.4002]
[1765443742439,1.3966,3205.0,3204.5,1.8112]
[1765443742738,6.0791,3205.0,3204.9,3.2078]
[1765443743040,6.0791,3204.5,3204.4,0.00468508]
[1765443743237,1.3966,3203.5,3203.1,3.61294255]
[1765443743438,6.0791,3203.5,3203.4,3.2078]
[1765443743636,6.0791,3203.5,3202.4,0.25268126]
[1765443743637,6.0791,3202.5,3202.4,0.25268126]
[1765443743836,1.3966,3202.0,3201.6,2.22060818]
[1765443744045,0.015681,3201.8,3201.5,2.22060818]
[1765443744243,0.01926741,3201.8,3201.5,0.0028276]
[1765443744644,0.01926741,3201.8,3201.5,2.22343578]
[1765443744940,0.01926741,3201.8,3201.5,0.0028276]
[1765443745142,0.015681,3201.7,3201.5,0.0028276]
[1765443745349,0.015681,3201.7,3201.6,3.2078]
[1765443746641,4.698181,3201.7,3201.6,3.2078]
[1765443746841,4.6825,3201.6,3201.5,0.0028276]
[1765443747037,4.698181,3201.6,3201.5,0.0028276]
[1765443747545,2.271681,3201.6,3201.5,0.0028276]
[1765443747742,4.60905969,3202.0,3201.5,0.0028276]
[1765443747941,0.00465969,3202.0,3201.9,3.2078]
[1765443748139,0.00465969,3202.0,3201.5,2.77858782]
[1765443748648,0.00465969,3202.0,3201.9,3.2078]
[1765443748846,0.00736406,3202.0,3201.9,3.2078]
[1765443749542,4.6044,3203.0,3201.9,9.2078]
[1765443749848,4.6044,3203.0,3202.4,3.2078]
[1765443750447,1.3991017,3202.5,3202.4,3.2078]
[1765443750843,0.0025017,3202.5,3202.4,5.42919228]
[1765443751048,0.0025017,3202.5,3202.4,3.2078]
[1765443752450,0.0025017,3202.5,3202.4,5.98356022]
[1765443752746,0.0025017,3202.5,3202.4,3.2078]
[1765443754252,1.3966,3203.0,3202.4,3.2078]
[1765443754550,3.2078,3203.6,3202.9,3.2078]
[1765443754849,1.3966,3204.0,3202.9,3.2078]
[1765443754850,1.3966,3204.0,3203.5,3.2078]